[Event "*** Titled Tuesday Blitz"]
[Site "Chess.com"]
[Date "2021.04.06"]
[Round "5"]
[White "krzyzan94"]
[Black "Stormeman100100"]
[Result "0-1"]
[WhiteElo "2675"]
[BlackElo "2525"]
[TimeControl "180+1"]
[EndTime "10:58:48 PDT"]
[Termination "Stormeman100100 won on time"]

1. e4 {[%clk 0:03:00.9]} 1... c5 {[%clk 0:02:55.4]} 2. Nc3 {[%clk 0:03:00.5]}
2... Nc6 {[%clk 0:02:51.5]} 3. f4 {[%clk 0:03:00.6]} 3... g6 {[%clk 0:02:52]} 4.
Nf3 {[%clk 0:02:58.3]} 4... Bg7 {[%clk 0:02:52.4]} 5. Bb5 {[%clk 0:02:58.9]}
5... Nd4 {[%clk 0:02:51.5]} 6. Bc4 {[%clk 0:02:59.4]} 6... e6 {[%clk 0:02:43.9]}
7. O-O {[%clk 0:02:58.2]} 7... Ne7 {[%clk 0:02:38.9]} 8. d3 {[%clk 0:02:49.6]}
8... d5 {[%clk 0:02:34.3]} 9. Bb3 {[%clk 0:02:49.1]} 9... O-O {[%clk 0:02:22.7]}
10. Nxd4 {[%clk 0:02:44.8]} 10... cxd4 {[%clk 0:02:19.3]} 11. Ne2 {[%clk
0:02:44.9]} 11... dxe4 {[%clk 0:02:17.1]} 12. dxe4 {[%clk 0:02:45.8]} 12... b6
{[%clk 0:02:16.9]} 13. Qd3 {[%clk 0:02:37.3]} 13... a5 {[%clk 0:02:15.6]} 14.
Bc4 {[%clk 0:02:37.4]} 14... Bb7 {[%clk 0:02:04.8]} 15. Bd2 {[%clk 0:02:30.1]}
15... Rc8 {[%clk 0:01:35.9]} 16. b3 {[%clk 0:02:29.6]} 16... Qd7 {[%clk
0:01:28.1]} 17. a4 {[%clk 0:02:29.3]} 17... Rfd8 {[%clk 0:01:27.4]} 18. Rad1
{[%clk 0:02:28.6]} 18... Kh8 {[%clk 0:01:21.1]} 19. Rfe1 {[%clk 0:02:26.2]}
19... f5 {[%clk 0:01:19.9]} 20. Ng3 {[%clk 0:02:26.2]} 20... fxe4 {[%clk
0:01:16.1]} 21. Nxe4 {[%clk 0:02:27.1]} 21... Nd5 {[%clk 0:01:09.2]} 22. Ng5
{[%clk 0:02:26]} 22... Re8 {[%clk 0:01:08.4]} 23. Qh3 {[%clk 0:02:14.3]} 23...
h6 {[%clk 0:00:56.5]} 24. Rxe6 {[%clk 0:02:12.4]} 24... Rxe6 {[%clk 0:00:54.9]}
25. Qxe6 {[%clk 0:02:13.3]} 25... Qxe6 {[%clk 0:00:44.5]} 26. Nxe6 {[%clk
0:02:14.2]} 26... Ne3 {[%clk 0:00:42.1]} 27. Bxe3 {[%clk 0:02:12.9]} 27... dxe3
{[%clk 0:00:41.3]} 28. Nxg7 {[%clk 0:02:13.6]} 28... e2 {[%clk 0:00:36.5]} 29.
Bxe2 {[%clk 0:02:11.4]} 29... Rxc2 {[%clk 0:00:36.2]} 30. Kf1 {[%clk 0:02:02.7]}
30... Bxg2+ {[%clk 0:00:33.6]} 31. Kxg2 {[%clk 0:02:03.6]} 31... Rxe2+ {[%clk
0:00:33.7]} 32. Kf3 {[%clk 0:02:01.6]} 32... Rxh2 {[%clk 0:00:33.9]} 33. Rd7
{[%clk 0:01:55.9]} 33... Rh3+ {[%clk 0:00:33.8]} 34. Ke4 {[%clk 0:01:54]} 34...
Rxb3 {[%clk 0:00:34.7]} 35. Ne8 {[%clk 0:01:52.1]} 35... Kg8 {[%clk 0:00:34.1]}
36. Nf6+ {[%clk 0:01:46.6]} 36... Kf8 {[%clk 0:00:34]} 37. Ke5 {[%clk
0:01:47.5]} 37... Re3+ {[%clk 0:00:25.7]} 38. Ne4 {[%clk 0:01:47.6]} 38... Ke8
{[%clk 0:00:25.5]} 39. Rh7 {[%clk 0:01:42.7]} 39... h5 {[%clk 0:00:15.9]} 40.
Rb7 {[%clk 0:01:37.4]} 40... Rb3 {[%clk 0:00:15.4]} 41. Ke6 {[%clk 0:01:33.3]}
41... Kd8 {[%clk 0:00:15.3]} 42. Rd7+ {[%clk 0:01:28.8]} 42... Kc8 {[%clk
0:00:15.4]} 43. Nd6+ {[%clk 0:01:29.7]} 43... Kb8 {[%clk 0:00:15.9]} 44. Rb7+
{[%clk 0:01:28]} 44... Ka8 {[%clk 0:00:15.8]} 45. Kd7 {[%clk 0:01:28.3]} 45...
h4 {[%clk 0:00:11.2]} 46. Rc7 {[%clk 0:01:23.7]} 46... h3 {[%clk 0:00:09.2]} 47.
Rc8+ {[%clk 0:01:15.3]} 47... Ka7 {[%clk 0:00:09.2]} 48. Nb5+ {[%clk 0:01:15.7]}
48... Kb7 {[%clk 0:00:08.2]} 49. Rc7+ {[%clk 0:01:15.3]} 49... Kb8 {[%clk
0:00:07.3]} 50. Rc8+ {[%clk 0:01:14.2]} 50... Kb7 {[%clk 0:00:07.2]} 51. Rh8
{[%clk 0:01:15.1]} 51... Rb4 {[%clk 0:00:04.6]} 52. Nd6+ {[%clk 0:01:15.2]}
52... Ka7 {[%clk 0:00:04.9]} 53. Kc6 {[%clk 0:01:13.3]} 53... Rb1 {[%clk
0:00:02.9]} 54. Nb5+ {[%clk 0:01:12.9]} 54... Rxb5 {[%clk 0:00:03]} 55. Ra8+
{[%clk 0:01:13.8]} 55... Kxa8 {[%clk 0:00:03.4]} 56. axb5 {[%clk 0:01:11.5]}
56... h2 {[%clk 0:00:03.4]} 57. Kxb6 {[%clk 0:01:12.1]} 57... h1=Q {[%clk
0:00:03.5]} 58. f5 {[%clk 0:01:12]} 58... gxf5 {[%clk 0:00:03.2]} 59. Kc7 {[%clk
0:01:11.4]} 59... f4 {[%clk 0:00:03.4]} 60. b6 {[%clk 0:01:11.8]} 60... Qb7+
{[%clk 0:00:04.2]} 61. Kd8 {[%clk 0:01:11.1]} 61... Qxb6+ {[%clk 0:00:05.1]} 62.
Kd7 {[%clk 0:01:12]} 62... Qb7+ {[%clk 0:00:05.4]} 0-1

[Event "*** Titled Tuesday Blitz"]
[Site "Chess.com"]
[Date "2021.04.06"]
[Round "5"]
[White "GM_Crest"]
[Black "erdni1993"]
[Result "1-0"]
[WhiteElo "2701"]
[BlackElo "2497"]
[TimeControl "180+1"]
[EndTime "10:58:53 PDT"]
[Termination "GM_Crest won by resignation"]

1. d4 {[%clk 0:03:00.9]} 1... Nf6 {[%clk 0:02:28.4]} 2. c4 {[%clk 0:02:29.5]}
2... e6 {[%clk 0:02:28.5]} 3. Nc3 {[%clk 0:02:29.2]} 3... c5 {[%clk 0:02:29]} 4.
d5 {[%clk 0:02:29]} 4... exd5 {[%clk 0:02:29.6]} 5. cxd5 {[%clk 0:02:29.9]} 5...
Bd6 {[%clk 0:02:29.8]} 6. g3 {[%clk 0:02:29.9]} 6... O-O {[%clk 0:02:29.6]} 7.
Bg2 {[%clk 0:02:29.8]} 7... Re8 {[%clk 0:02:29.4]} 8. Nh3 {[%clk 0:02:28.8]}
8... h6 {[%clk 0:02:29.1]} 9. O-O {[%clk 0:02:27.3]} 9... a6 {[%clk 0:02:29.1]}
10. a4 {[%clk 0:02:26.9]} 10... Bc7 {[%clk 0:02:28.3]} 11. d6 {[%clk 0:02:27.3]}
11... Ba5 {[%clk 0:02:28.4]} 12. f4 {[%clk 0:02:27.1]} 12... Nc6 {[%clk
0:02:27.5]} 13. Nf2 {[%clk 0:02:27.1]} 13... Nh7 {[%clk 0:01:48.6]} 14. e4
{[%clk 0:02:26.8]} 14... Rb8 {[%clk 0:01:47.6]} 15. e5 {[%clk 0:02:25.6]} 15...
b5 {[%clk 0:01:47.2]} 16. axb5 {[%clk 0:02:24.7]} 16... axb5 {[%clk 0:01:47.3]}
17. Nce4 {[%clk 0:02:21.2]} 17... Bb6 {[%clk 0:01:43.5]} 18. Be3 {[%clk
0:02:18.5]} 18... c4 {[%clk 0:01:42.6]} 19. Bxb6 {[%clk 0:02:08]} 19... Qxb6
{[%clk 0:01:43.5]} 20. Kh1 {[%clk 0:02:08.1]} 20... Bb7 {[%clk 0:01:35.3]} 21.
Qg4 {[%clk 0:02:04.2]} 21... Qd8 {[%clk 0:01:15.4]} 22. Nc5 {[%clk 0:02:02.5]}
22... Bc8 {[%clk 0:01:08.6]} 23. Nfe4 {[%clk 0:02:02]} 23... Kh8 {[%clk
0:01:05.6]} 24. h4 {[%clk 0:01:53.9]} 24... Nd4 {[%clk 0:00:53.6]} 25. Rfd1
{[%clk 0:01:38.5]} 25... Nc2 {[%clk 0:00:52]} 26. h5 {[%clk 0:01:21.9]} 26...
Ne3 {[%clk 0:00:42.4]} 27. Qe2 {[%clk 0:01:16.7]} 27... Nxd1 {[%clk 0:00:39.4]}
28. Rxd1 {[%clk 0:01:17.4]} 28... f6 {[%clk 0:00:40]} 29. e6 {[%clk 0:01:17]}
29... dxe6 {[%clk 0:00:34.2]} 30. d7 {[%clk 0:01:17]} 30... Re7 {[%clk
0:00:32.1]} 31. dxc8=Q {[%clk 0:01:09]} 31... Qxc8 {[%clk 0:00:33]} 32. Qe3
{[%clk 0:01:04.1]} 32... Nf8 {[%clk 0:00:31.7]} 33. g4 {[%clk 0:00:52.5]} 33...
e5 {[%clk 0:00:25.8]} 34. f5 {[%clk 0:00:49.4]} 34... Qc7 {[%clk 0:00:25.4]} 35.
Qd2 {[%clk 0:00:45]} 35... Ree8 {[%clk 0:00:24.6]} 36. Qd6 {[%clk 0:00:42.8]}
36... Qxd6 {[%clk 0:00:21.1]} 37. Nxd6 {[%clk 0:00:43]} 37... Re7 {[%clk
0:00:21.6]} 38. Bc6 {[%clk 0:00:39]} 38... b4 {[%clk 0:00:21.1]} 39. Nxc4 {[%clk
0:00:38.8]} 39... Rc7 {[%clk 0:00:21.1]} 40. Rd6 {[%clk 0:00:38.3]} 40... Rbc8
{[%clk 0:00:20.6]} 41. Na5 {[%clk 0:00:38.5]} 41... Ra7 {[%clk 0:00:18.5]} 42.
Nab3 {[%clk 0:00:31.3]} 42... Nh7 {[%clk 0:00:18.7]} 43. Kg2 {[%clk 0:00:29.7]}
43... Ng5 {[%clk 0:00:18.8]} 44. Ba4 {[%clk 0:00:18.3]} 44... Rac7 {[%clk
0:00:18.6]} 45. Rd5 {[%clk 0:00:17.1]} 45... Nf7 {[%clk 0:00:17.6]} 46. Kf2
{[%clk 0:00:17]} 46... Ng5 {[%clk 0:00:17.7]} 47. Ke3 {[%clk 0:00:17.2]} 47...
Kh7 {[%clk 0:00:17.3]} 48. Nd3 {[%clk 0:00:16.5]} 48... Rc2 {[%clk 0:00:16.9]}
49. Rd7 {[%clk 0:00:15.8]} 49... R2c7 {[%clk 0:00:16.4]} 50. Rxc7 {[%clk
0:00:15.6]} 50... Rxc7 {[%clk 0:00:17.3]} 51. Nxb4 {[%clk 0:00:15.8]} 51... Rc4
{[%clk 0:00:17.1]} 52. Nd2 {[%clk 0:00:02.8]} 52... Rxb4 {[%clk 0:00:17.1]} 53.
b3 {[%clk 0:00:03.3]} 53... Nf7 {[%clk 0:00:16.2]} 54. Nc4 {[%clk 0:00:03.7]}
54... Nd8 {[%clk 0:00:16]} 55. Kd3 {[%clk 0:00:04]} 55... Rb7 {[%clk 0:00:16.1]}
56. Kc3 {[%clk 0:00:04.5]} 56... Rc7 {[%clk 0:00:16.5]} 57. b4 {[%clk
0:00:04.6]} 57... Nb7 {[%clk 0:00:17]} 58. Kb3 {[%clk 0:00:04.9]} 58... e4
{[%clk 0:00:16.7]} 59. Be8 {[%clk 0:00:04.3]} 59... Rxc4 {[%clk 0:00:15.1]} 60.
Kxc4 {[%clk 0:00:03.7]} 60... Nd6+ {[%clk 0:00:15.7]} 61. Kd4 {[%clk 0:00:03.5]}
61... Nxe8 {[%clk 0:00:16.3]} 62. Kxe4 {[%clk 0:00:04]} 62... Kg8 {[%clk
0:00:16.8]} 63. Kd5 {[%clk 0:00:04.3]} 63... Kf7 {[%clk 0:00:17.2]} 64. Kc6
{[%clk 0:00:04.2]} 64... Ke7 {[%clk 0:00:17.7]} 65. b5 {[%clk 0:00:04.8]} 65...
Nd6 {[%clk 0:00:17.6]} 66. b6 {[%clk 0:00:05.4]} 66... Nc8 {[%clk 0:00:14.8]}
67. b7 {[%clk 0:00:04.9]} 67... Na7+ {[%clk 0:00:14]} 68. Kb6 {[%clk 0:00:05.3]}
1-0

[Event "*** Titled Tuesday Blitz"]
[Site "Chess.com"]
[Date "2021.04.06"]
[Round "5"]
[White "Bulldog167"]
[Black "elohunter1999"]
[Result "1-0"]
[WhiteElo "2789"]
[BlackElo "2532"]
[TimeControl "180+1"]
[EndTime "10:58:54 PDT"]
[Termination "Bulldog167 won by resignation"]

1. c4 {[%clk 0:02:50.6]} 1... c5 {[%clk 0:02:46.6]} 2. g3 {[%clk 0:02:28.1]}
2... g6 {[%clk 0:02:45.4]} 3. Bg2 {[%clk 0:02:28.6]} 3... Bg7 {[%clk 0:02:46.1]}
4. Nf3 {[%clk 0:02:29]} 4... Nc6 {[%clk 0:02:46]} 5. O-O {[%clk 0:02:28.4]} 5...
e6 {[%clk 0:02:45.7]} 6. Nc3 {[%clk 0:02:26.8]} 6... Nge7 {[%clk 0:02:29.6]} 7.
e4 {[%clk 0:02:14.1]} 7... O-O {[%clk 0:02:00.3]} 8. d3 {[%clk 0:02:12.5]} 8...
d5 {[%clk 0:01:59.5]} 9. exd5 {[%clk 0:01:54.9]} 9... exd5 {[%clk 0:02:00.4]}
10. Bg5 {[%clk 0:01:54.4]} 10... h6 {[%clk 0:01:49.2]} 11. cxd5 {[%clk
0:01:54.7]} 11... hxg5 {[%clk 0:01:48.7]} 12. dxc6 {[%clk 0:01:54.9]} 12... Nxc6
{[%clk 0:01:48.9]} 13. h4 {[%clk 0:01:49.6]} 13... gxh4 {[%clk 0:01:35]} 14.
Nxh4 {[%clk 0:01:48.7]} 14... Ne5 {[%clk 0:01:35.5]} 15. Bd5 {[%clk 0:01:43.6]}
15... Bh3 {[%clk 0:01:30.1]} 16. Re1 {[%clk 0:01:42.3]} 16... Qd6 {[%clk
0:01:07.8]} 17. Qb3 {[%clk 0:01:33.6]} 17... Ng4 {[%clk 0:01:00.8]} 18. Ne4
{[%clk 0:01:19.3]} 18... Qb6 {[%clk 0:00:47.8]} 19. Qxb6 {[%clk 0:01:16]} 19...
axb6 {[%clk 0:00:48.7]} 20. Nxg6 {[%clk 0:01:15.7]} 20... Rfd8 {[%clk
0:00:48.4]} 21. Nf4 {[%clk 0:01:11.6]} 21... Ne5 {[%clk 0:00:43.9]} 22. Ng5
{[%clk 0:00:54.2]} 22... Bf5 {[%clk 0:00:39]} 23. Rad1 {[%clk 0:00:43.4]} 23...
Bf6 {[%clk 0:00:36.9]} 24. Ne4 {[%clk 0:00:28]} 24... Nf3+ {[%clk 0:00:28.6]}
25. Kf1 {[%clk 0:00:27.5]} 25... Bxb2 {[%clk 0:00:24.5]} 26. Re3 {[%clk
0:00:24.6]} 26... Nd4 {[%clk 0:00:22.4]} 27. Ng5 {[%clk 0:00:22.2]} 27... Kg7
{[%clk 0:00:18]} 28. Rb1 {[%clk 0:00:18.7]} 28... Bc3 {[%clk 0:00:15]} 29. Rxb6
{[%clk 0:00:17.6]} 29... Bd2 {[%clk 0:00:15.2]} 30. Rxb7 {[%clk 0:00:13.7]}
30... Bxe3 {[%clk 0:00:14.4]} 31. Rxf7+ {[%clk 0:00:14.1]} 31... Kh6 {[%clk
0:00:14.7]} 32. Rxf5 {[%clk 0:00:10.3]} 32... Nxf5 {[%clk 0:00:13.8]} 33. Nf7+
{[%clk 0:00:10.6]} 33... Kh7 {[%clk 0:00:07.3]} 34. Nxd8 {[%clk 0:00:11.1]}
34... Rxd8 {[%clk 0:00:07.3]} 35. Be4 {[%clk 0:00:11.2]} 35... Bxf4 {[%clk
0:00:07.1]} 36. Bxf5+ {[%clk 0:00:11.7]} 36... Kg7 {[%clk 0:00:07.3]} 37. gxf4
{[%clk 0:00:12.4]} 37... Kf6 {[%clk 0:00:07.4]} 38. Be4 {[%clk 0:00:12]} 38...
Rd4 {[%clk 0:00:07.5]} 39. Ke2 {[%clk 0:00:09.4]} 39... Ra4 {[%clk 0:00:07.7]}
40. Bd5 {[%clk 0:00:09.8]} 40... Kf5 {[%clk 0:00:08]} 41. Ke3 {[%clk 0:00:07.5]}
41... Rxf4 {[%clk 0:00:08]} 42. Bc4 {[%clk 0:00:05.9]} 42... Ke5 {[%clk
0:00:08.1]} 43. a4 {[%clk 0:00:06.3]} 43... Rf8 {[%clk 0:00:06.2]} 44. a5 {[%clk
0:00:06.6]} 44... Ra8 {[%clk 0:00:06.3]} 45. f4+ {[%clk 0:00:05.3]} 45... Kf5
{[%clk 0:00:06.2]} 46. a6 {[%clk 0:00:06.2]} 46... Ra7 {[%clk 0:00:06.4]} 47.
Kf3 {[%clk 0:00:04.8]} 47... Kf6 {[%clk 0:00:06.8]} 48. Ke4 {[%clk 0:00:04.6]}
48... Rd7 {[%clk 0:00:04.8]} 49. Ke3 {[%clk 0:00:02.3]} 49... Ra7 {[%clk
0:00:04.5]} 50. Ke4 {[%clk 0:00:02.9]} 50... Rd7 {[%clk 0:00:04.8]} 51. Bd5
{[%clk 0:00:03.5]} 51... Re7+ {[%clk 0:00:04.9]} 52. Kf3 {[%clk 0:00:03.4]}
52... Ra7 {[%clk 0:00:03.9]} 53. Bb7 {[%clk 0:00:03.1]} 53... Kf5 {[%clk
0:00:04.4]} 54. Ke3 {[%clk 0:00:03.6]} 54... Kf6 {[%clk 0:00:04]} 55. Ke4 {[%clk
0:00:04.2]} 55... Ke6 {[%clk 0:00:04.5]} 56. f5+ {[%clk 0:00:04.7]} 56... Kf6
{[%clk 0:00:04.9]} 57. Kf4 {[%clk 0:00:05.3]} 57... Ke7 {[%clk 0:00:03.5]} 58.
Ke5 {[%clk 0:00:05.7]} 58... Kf7 {[%clk 0:00:03.8]} 59. Kd5 {[%clk 0:00:05.5]}
59... Kf6 {[%clk 0:00:03]} 60. Kxc5 {[%clk 0:00:05.9]} 60... Kxf5 {[%clk
0:00:03]} 61. Kb6 {[%clk 0:00:06.4]} 61... Rxa6+ {[%clk 0:00:03.1]} 62. Bxa6
{[%clk 0:00:05.8]} 1-0

[Event "*** Titled Tuesday Blitz"]
[Site "Chess.com"]
[Date "2021.04.06"]
[Round "5"]
[White "PavelShkapenko"]
[Black "AttilaTurzo"]
[Result "1-0"]
[WhiteElo "2726"]
[BlackElo "2509"]
[TimeControl "180+1"]
[EndTime "10:59:00 PDT"]
[Termination "PavelShkapenko won on time"]

1. e4 {[%clk 0:03:00.9]} 1... c6 {[%clk 0:02:59.6]} 2. d4 {[%clk 0:02:56.9]}
2... d5 {[%clk 0:03:00.5]} 3. e5 {[%clk 0:02:57.3]} 3... Bf5 {[%clk 0:02:59.6]}
4. h4 {[%clk 0:02:57.9]} 4... h5 {[%clk 0:02:59.2]} 5. Bd3 {[%clk 0:02:58.4]}
5... Bxd3 {[%clk 0:02:58.6]} 6. Qxd3 {[%clk 0:02:59.3]} 6... e6 {[%clk
0:02:59.1]} 7. Bg5 {[%clk 0:02:59.8]} 7... Qb6 {[%clk 0:02:56.9]} 8. Nd2 {[%clk
0:03:00.1]} 8... Qa6 {[%clk 0:02:55.3]} 9. c4 {[%clk 0:02:58.8]} 9... Ne7 {[%clk
0:02:51.2]} 10. Ne2 {[%clk 0:02:57.9]} 10... Nf5 {[%clk 0:02:51.5]} 11. O-O
{[%clk 0:02:57.5]} 11... c5 {[%clk 0:02:47.7]} 12. Qb3 {[%clk 0:02:00.7]} 12...
dxc4 {[%clk 0:02:40]} 13. Nxc4 {[%clk 0:01:59.8]} 13... cxd4 {[%clk 0:02:33.9]}
14. a4 {[%clk 0:01:42.7]} 14... Nc6 {[%clk 0:02:31]} 15. Qb5 {[%clk 0:01:42.7]}
15... Bb4 {[%clk 0:02:15]} 16. Rfc1 {[%clk 0:01:19.9]} 16... O-O {[%clk
0:02:08.9]} 17. Nf4 {[%clk 0:01:17.9]} 17... g6 {[%clk 0:02:03.7]} 18. Nd3
{[%clk 0:01:15.2]} 18... Be7 {[%clk 0:01:57]} 19. g3 {[%clk 0:01:05]} 19... Rfc8
{[%clk 0:01:34.7]} 20. b4 {[%clk 0:00:50.9]} 20... Qxb5 {[%clk 0:01:28.1]} 21.
axb5 {[%clk 0:00:50.4]} 21... Nxb4 {[%clk 0:01:26.9]} 22. Nxb4 {[%clk
0:00:40.9]} 22... Bxb4 {[%clk 0:01:27.8]} 23. Ra4 {[%clk 0:00:39.8]} 23... Bc3
{[%clk 0:01:22.2]} 24. Nd6 {[%clk 0:00:23.9]} 24... Rc5 {[%clk 0:01:08.9]} 25.
b6 {[%clk 0:00:18.5]} 25... a6 {[%clk 0:01:03.3]} 26. Nxb7 {[%clk 0:00:18.2]}
26... Rb5 {[%clk 0:01:02.7]} 27. Nd6 {[%clk 0:00:18]} 27... Rxb6 {[%clk
0:01:01.5]} 28. Ne4 {[%clk 0:00:14.1]} 28... Bb2 {[%clk 0:00:54.6]} 29. Rb1
{[%clk 0:00:13.9]} 29... d3 {[%clk 0:00:50.4]} 30. Bd2 {[%clk 0:00:13.7]} 30...
Nd4 {[%clk 0:00:48.2]} 31. Kg2 {[%clk 0:00:13.1]} 31... Nc2 {[%clk 0:00:44.4]}
32. Ra2 {[%clk 0:00:13.2]} 32... Rab8 {[%clk 0:00:43.2]} 33. Nf6+ {[%clk
0:00:13.5]} 33... Kg7 {[%clk 0:00:40.4]} 34. Nd7 {[%clk 0:00:14.4]} 34... Bd4
{[%clk 0:00:33.3]} 35. Nxb6 {[%clk 0:00:14.2]} 35... Rxb6 {[%clk 0:00:32.4]} 36.
Rxb6 {[%clk 0:00:14.3]} 36... Bxb6 {[%clk 0:00:33.3]} 37. Rxa6 {[%clk
0:00:14.5]} 37... Bd4 {[%clk 0:00:27.9]} 38. Rd6 {[%clk 0:00:14.3]} 38... Bxe5
{[%clk 0:00:26.3]} 39. Rxd3 {[%clk 0:00:13.8]} 39... Nd4 {[%clk 0:00:21.8]} 40.
Bc3 {[%clk 0:00:13.1]} 40... Nc6 {[%clk 0:00:21.8]} 41. Bxe5+ {[%clk 0:00:13.3]}
41... Nxe5 {[%clk 0:00:22.7]} 42. Ra3 {[%clk 0:00:13.6]} 42... Ng4 {[%clk
0:00:20.7]} 43. Ra7 {[%clk 0:00:13.3]} 43... Ne5 {[%clk 0:00:20.6]} 44. f3
{[%clk 0:00:13.2]} 44... Nc6 {[%clk 0:00:18.3]} 45. Rc7 {[%clk 0:00:12.6]} 45...
Ne5 {[%clk 0:00:18.2]} 46. Kf2 {[%clk 0:00:11.9]} 46... Kf6 {[%clk 0:00:17.6]}
47. Ke3 {[%clk 0:00:11.6]} 47... Kg7 {[%clk 0:00:13.7]} 48. Kf4 {[%clk
0:00:10.2]} 48... Kf6 {[%clk 0:00:13.3]} 49. Rb7 {[%clk 0:00:09.4]} 49... Nd3+
{[%clk 0:00:12.7]} 50. Ke3 {[%clk 0:00:08.8]} 50... Nc5 {[%clk 0:00:12.3]} 51.
Rc7 {[%clk 0:00:08.7]} 51... Na6 {[%clk 0:00:12.4]} 52. Ra7 {[%clk 0:00:08.7]}
52... Nc5 {[%clk 0:00:12.2]} 53. g4 {[%clk 0:00:08.4]} 53... e5 {[%clk
0:00:11.7]} 54. Ra5 {[%clk 0:00:07.4]} 54... Ne6 {[%clk 0:00:09.8]} 55. Ke4
{[%clk 0:00:07.6]} 55... hxg4 {[%clk 0:00:09.6]} 56. fxg4 {[%clk 0:00:07.4]}
56... Nf4 {[%clk 0:00:05.2]} 57. Rxe5 {[%clk 0:00:06.2]} 57... Ng2 {[%clk
0:00:05.5]} 58. g5+ {[%clk 0:00:05.9]} 58... Kg7 {[%clk 0:00:04.3]} 59. h5
{[%clk 0:00:05.6]} 59... gxh5 {[%clk 0:00:03.8]} 60. Kf3 {[%clk 0:00:06.1]}
60... Nh4+ {[%clk 0:00:03.3]} 61. Kf2 {[%clk 0:00:03.9]} 61... Ng6 {[%clk
0:00:03.9]} 62. Re4 {[%clk 0:00:04.5]} 62... Nf8 {[%clk 0:00:02.7]} 63. Kf3
{[%clk 0:00:04.5]} 63... Kg6 {[%clk 0:00:02.4]} 64. Rf4 {[%clk 0:00:03.5]} 64...
Ne6 {[%clk 0:00:01.6]} 65. Rf6+ {[%clk 0:00:03.7]} 1-0

[Event "*** Titled Tuesday Blitz"]
[Site "Chess.com"]
[Date "2021.04.06"]
[Round "5"]
[White "GMHess"]
[Black "ural58"]
[Result "1/2-1/2"]
[WhiteElo "2750"]
[BlackElo "2483"]
[TimeControl "180+1"]
[EndTime "10:59:01 PDT"]
[Termination "Game drawn by repetition"]

1. b3 {[%clk 0:03:00.9]} 1... e5 {[%clk 0:02:53.3]} 2. Bb2 {[%clk 0:03:01.8]}
2... Nc6 {[%clk 0:02:53.5]} 3. e3 {[%clk 0:03:02.2]} 3... d5 {[%clk 0:02:53.5]}
4. Bb5 {[%clk 0:03:02.2]} 4... Bd6 {[%clk 0:02:53.7]} 5. Nf3 {[%clk 0:03:02.4]}
5... Qe7 {[%clk 0:02:47.6]} 6. d4 {[%clk 0:03:01.3]} 6... e4 {[%clk 0:02:39.9]}
7. Ne5 {[%clk 0:03:01.5]} 7... Bd7 {[%clk 0:02:34.8]} 8. Nxd7 {[%clk 0:02:58.8]}
8... Qxd7 {[%clk 0:02:32.8]} 9. c4 {[%clk 0:02:58.9]} 9... a6 {[%clk 0:02:32.8]}
10. Ba4 {[%clk 0:02:56]} 10... Bb4+ {[%clk 0:02:03.9]} 11. Kf1 {[%clk
0:02:47.6]} 11... dxc4 {[%clk 0:01:55.6]} 12. bxc4 {[%clk 0:02:42.9]} 12... Nf6
{[%clk 0:01:55.2]} 13. d5 {[%clk 0:02:05.4]} 13... O-O-O {[%clk 0:01:54.8]} 14.
Nc3 {[%clk 0:01:57.9]} 14... Bxc3 {[%clk 0:01:13.3]} 15. Bxc3 {[%clk 0:01:57.6]}
15... Qf5 {[%clk 0:01:12.7]} 16. Bxc6 {[%clk 0:01:12.3]} 16... bxc6 {[%clk
0:01:12.8]} 17. Qa4 {[%clk 0:01:12.6]} 17... cxd5 {[%clk 0:01:13.4]} 18. Qxa6+
{[%clk 0:00:58.2]} 18... Kd7 {[%clk 0:01:13.5]} 19. Rd1 {[%clk 0:00:54.8]} 19...
Ke8 {[%clk 0:00:53.3]} 20. Qc6+ {[%clk 0:00:45.2]} 20... Kf8 {[%clk 0:00:52.6]}
21. Qxc7 {[%clk 0:00:34.9]} 21... Rc8 {[%clk 0:00:29.5]} 22. Qd6+ {[%clk
0:00:22.3]} 22... Kg8 {[%clk 0:00:29.7]} 23. Bxf6 {[%clk 0:00:22.3]} 23... Qxf6
{[%clk 0:00:24.7]} 24. Qxf6 {[%clk 0:00:22.1]} 24... gxf6 {[%clk 0:00:24.6]} 25.
cxd5 {[%clk 0:00:22.5]} 25... Kg7 {[%clk 0:00:22.1]} 26. g3 {[%clk 0:00:15.2]}
26... Rc2 {[%clk 0:00:21.6]} 27. Kg2 {[%clk 0:00:15.3]} 27... Rxa2 {[%clk
0:00:20.2]} 28. Rd4 {[%clk 0:00:15.4]} 28... f5 {[%clk 0:00:19.9]} 29. d6 {[%clk
0:00:16]} 29... Rd8 {[%clk 0:00:20]} 30. Rhd1 {[%clk 0:00:15]} 30... Rd7 {[%clk
0:00:20.2]} 31. Rd5 {[%clk 0:00:14.3]} 31... Kf6 {[%clk 0:00:20.5]} 32. g4
{[%clk 0:00:12.2]} 32... fxg4 {[%clk 0:00:20.2]} 33. Kg3 {[%clk 0:00:12.8]}
33... Kg6 {[%clk 0:00:18.9]} 34. R1d2 {[%clk 0:00:08.3]} 34... Rxd2 {[%clk
0:00:18.1]} 35. Rxd2 {[%clk 0:00:09.2]} 35... Kf5 {[%clk 0:00:15.5]} 36. Rd5+
{[%clk 0:00:06.4]} 36... Ke6 {[%clk 0:00:15.8]} 37. Rh5 {[%clk 0:00:06.7]} 37...
Rxd6 {[%clk 0:00:15.6]} 38. Rh6+ {[%clk 0:00:03.8]} 38... f6 {[%clk 0:00:13.7]}
39. Kxg4 {[%clk 0:00:03.7]} 39... Rd2 {[%clk 0:00:13.9]} 40. Kg3 {[%clk
0:00:04.2]} 40... Rd7 {[%clk 0:00:12.3]} 41. Kf4 {[%clk 0:00:04.3]} 41... Rd2
{[%clk 0:00:11.8]} 42. Kg3 {[%clk 0:00:04.8]} 42... Rd8 {[%clk 0:00:12]} 43. h3
{[%clk 0:00:05.4]} 43... Rg8+ {[%clk 0:00:12.1]} 44. Kf4 {[%clk 0:00:05.4]}
44... Rg2 {[%clk 0:00:12.7]} 45. Kxe4 {[%clk 0:00:05.7]} 45... Rxf2 {[%clk
0:00:12.9]} 46. Rxh7 {[%clk 0:00:06.4]} 46... Ra2 {[%clk 0:00:12.5]} 47. h4
{[%clk 0:00:06.6]} 47... Ra4+ {[%clk 0:00:12.7]} 48. Kf3 {[%clk 0:00:06.6]}
48... Kf5 {[%clk 0:00:12.5]} 49. Rh8 {[%clk 0:00:06.4]} 49... Kg6 {[%clk
0:00:12.5]} 50. e4 {[%clk 0:00:05.5]} 50... Ra1 {[%clk 0:00:11.7]} 51. Ke3
{[%clk 0:00:04.1]} 51... Re1+ {[%clk 0:00:11]} 52. Kf4 {[%clk 0:00:04.6]} 52...
Rf1+ {[%clk 0:00:10.9]} 53. Kg3 {[%clk 0:00:04.4]} 53... Rg1+ {[%clk 0:00:11.1]}
54. Kf3 {[%clk 0:00:04.6]} 54... Rf1+ {[%clk 0:00:11.3]} 55. Ke2 {[%clk
0:00:05]} 55... Rh1 {[%clk 0:00:11.4]} 56. Ke3 {[%clk 0:00:04.8]} 56... Re1+
{[%clk 0:00:11.5]} 57. Kd4 {[%clk 0:00:04.7]} 57... Rd1+ {[%clk 0:00:11.8]} 58.
Kc4 {[%clk 0:00:05.2]} 58... Rd2 {[%clk 0:00:10.1]} 59. Kc5 {[%clk 0:00:05.2]}
59... Rd1 {[%clk 0:00:09.9]} 60. Rg8+ {[%clk 0:00:05.2]} 60... Kf7 {[%clk
0:00:09.3]} 61. Rg4 {[%clk 0:00:05.1]} 61... Ke6 {[%clk 0:00:08.5]} 62. h5
{[%clk 0:00:04.7]} 62... Rh1 {[%clk 0:00:08.3]} 63. Kd4 {[%clk 0:00:05]} 63...
Rxh5 {[%clk 0:00:07.6]} 64. Rf4 {[%clk 0:00:05.9]} 64... Ra5 {[%clk 0:00:07.3]}
65. Rh4 {[%clk 0:00:04.9]} 65... Ra4+ {[%clk 0:00:07.6]} 66. Ke3 {[%clk
0:00:05.3]} 66... Ra3+ {[%clk 0:00:08.2]} 67. Kf4 {[%clk 0:00:05.7]} 67... Ra1
{[%clk 0:00:08.7]} 68. Rh8 {[%clk 0:00:06]} 68... Rf1+ {[%clk 0:00:08.8]} 69.
Ke3 {[%clk 0:00:06.5]} 69... Re1+ {[%clk 0:00:09.5]} 70. Kd4 {[%clk 0:00:07]}
70... Rd1+ {[%clk 0:00:09.7]} 71. Ke3 {[%clk 0:00:07.6]} 71... Re1+ {[%clk
0:00:10]} 72. Kd3 {[%clk 0:00:08.3]} 72... Rd1+ {[%clk 0:00:10.4]} 73. Ke2
{[%clk 0:00:08.8]} 73... Ra1 {[%clk 0:00:08.3]} 74. Ke3 {[%clk 0:00:08.8]} 74...
Re1+ {[%clk 0:00:07.7]} 1/2-1/2